Workbook

Sheet Start
B1: Investment Tracker
B5: Portfolio
B26: Asset Allocation

Sheet Portfolio
B1: Investment Tracker
B3: Portfolio
B5: Company | C5: Category | D5: Shares | E5: Price | F5: Change | G5: Change (%) | H5: Portfolio % | I5: Value
C6: US Stocks | D6: 1,200.00 | E6: =_FV(TablePortfolio[[#This Row],[Company]],"Price") -> £304.80 | F6: =_FV(TablePortfolio[[#This Row],[Company]],"Change") -> -£13.47 | G6: =_FV(TablePortfolio[[#This Row],[Company]],"Change (%)",TRUE) -> -4.23% | H6: =IFERROR(I6/SUBTOTAL(109,TablePortfolio[Value]),"") -> 78% | I6: =D6 * E6 -> £365,760.00
C7: Bonds | D7: 1,300.00 | E7: =_FV(TablePortfolio[[#This Row],[Company]],"Price") -> £11.04 | F7: =_FV(TablePortfolio[[#This Row],[Company]],"Change") -> £0.01 | G7: =_FV(TablePortfolio[[#This Row],[Company]],"Change (%)",TRUE) -> 0.09% | H7: =IFERROR(I7/SUBTOTAL(109,TablePortfolio[Value]),"") -> 3% | I7: £14,352.00
C8: International Stocks | D8: 1,200.00 | E8: =_FV(TablePortfolio[[#This Row],[Company]],"Price") -> £34.48 | F8: =_FV(TablePortfolio[[#This Row],[Company]],"Change") -> -£0.27 | G8: =_FV(TablePortfolio[[#This Row],[Company]],"Change (%)",TRUE) -> -0.78% | H8: =IFERROR(I8/SUBTOTAL(109,TablePortfolio[Value]),"") -> 9% | I8: £41,376.00
C9: Cash | D9: 10,000.00 | E9: =_FV(TablePortfolio[[#This Row],[Company]],"Price") -> £1.00 | F9: =_FV(TablePortfolio[[#This Row],[Company]],"Change") -> 0 | G9: =_FV(TablePortfolio[[#This Row],[Company]],"Change (%)",TRUE) -> 0.00% | H9: =IFERROR(I9/SUBTOTAL(109,TablePortfolio[Value]),"") -> 2% | I9: £10,000.00
C10: Real Estate | D10: 125.00 | E10: =_FV(TablePortfolio[[#This Row],[Company]],"Price") -> £156.59 | F10: =_FV(TablePortfolio[[#This Row],[Company]],"Change") -> -£0.22 | G10: =_FV(TablePortfolio[[#This Row],[Company]],"Change (%)",TRUE) -> -0.14% | H10: =IFERROR(I10/SUBTOTAL(109,TablePortfolio[Value]),"") -> 4% | I10: £19,573.75
C11: Commodities | D11: 100.00 | E11: =_FV(TablePortfolio[[#This Row],[Company]],"Price") -> £170.16 | F11: =_FV(TablePortfolio[[#This Row],[Company]],"Change") -> -£0.58 | G11: =_FV(TablePortfolio[[#This Row],[Company]],"Change (%)",TRUE) -> -0.34% | H11: =IFERROR(I11/SUBTOTAL(109,TablePortfolio[Value]),"") -> 4% | I11: £17,016.00
B12: Total | I12: =IFERROR(SUBTOTAL(109,TablePortfolio[Value]), "") -> £468,077.75

Sheet Asset Allocation
B1: Investment Tracker
B3: Asset Allocation
B19: Category | C19: My Target | D19: Actual | E19: Difference | F19: Threshold | G19: Value
B20: US Stocks | C20: 55% | D20: =IFERROR(G20/SUBTOTAL(109,TableAssetAllocation[Value]),"") -> 78% | E20: =D20 - C20 -> 23.1% | F20: =MIN(5%, $C20 * 25%) -> 5% | G20: =SUMIF(TablePortfolio[Category], B20, TablePortfolio[Value]) -> £365,760.00
B21: International Stocks | C21: 20% | D21: =IFERROR(G21/SUBTOTAL(109,TableAssetAllocation[Value]),"") -> 9% | E21: -11.2% | F21: 5% | G21: =SUMIF(TablePortfolio[Category], B21, TablePortfolio[Value]) -> £41,376.00
B22: Bonds | C22: 10% | D22: =IFERROR(G22/SUBTOTAL(109,TableAssetAllocation[Value]),"") -> 3% | E22: -6.9% | F22: 3% | G22: =SUMIF(TablePortfolio[Category], B22, TablePortfolio[Value]) -> £14,352.00
B23: Cash | C23: 5% | D23: =IFERROR(G23/SUBTOTAL(109,TableAssetAllocation[Value]),"") -> 2% | E23: -2.9% | F23: 1% | G23: =SUMIF(TablePortfolio[Category], B23, TablePortfolio[Value]) -> £10,000.00
B24: Real Estate | C24: 5% | D24: =IFERROR(G24/SUBTOTAL(109,TableAssetAllocation[Value]),"") -> 4% | E24: -0.8% | F24: 1% | G24: =SUMIF(TablePortfolio[Category], B24, TablePortfolio[Value]) -> £19,573.75
B25: Commodities | C25: 5% | D25: =IFERROR(G25/SUBTOTAL(109,TableAssetAllocation[Value]),"") -> 4% | E25: -1.4% | F25: 1% | G25: =SUMIF(TablePortfolio[Category], B25, TablePortfolio[Value]) -> £17,016.00
